bitfinex-derivatives/quotes_SOLF0:USTF0_20250731
["timestamp","ask_amount","ask_price","bid_price","bid_amount"]
[1753973425077,6.5801955,176.52,176.44,3.25]
[1753973425285,2.91,176.51,176.44,3.25]
[1753973425483,6.5801955,176.5,176.44,3.25]
[1753973425686,2.91,176.48,176.45,3.25]
[1753973425888,2.91,176.47,176.43,3.25]
[1753973426082,9.4901955,176.48,176.4,3.25]
[1753973426385,2.91,176.51,176.42,3.25]
[1753973427380,5.6667,176.49,176.45,5.6676]
[1753973427585,2.91,176.51,176.41,6.5801955]
[1753973427789,2.91,176.49,176.42,3.25]
[1753973428085,2.91,176.46,176.43,3.32]
[1753973428282,2.91,176.45,176.38,3.32]
[1753973429680,5.6682,176.44,176.4,5.6693]
[1753973429880,9.4901955,176.48,176.41,3.32]
[1753973430286,2.91,176.47,176.4,3.32]
[1753973431090,2.91,176.47,176.38,3.32]
[1753973431591,2.91,176.47,176.42,5.6687]
[1753973431592,5.6678,176.45,176.42,5.6687]
[1753973432082,5.6675,176.46,176.45,3.32]
[1753973432481,5.6666,176.49,176.45,5.6675]
[1753973432681,2.91,176.51,176.42,3.32]
[1753973433081,2.91,176.48,176.43,3.32]
[1753973433292,2.91,176.47,176.4,3.32]
[1753973433687,5.6686,176.43,176.4,3.32]
[1753973433994,2.91,176.45,176.41,3.32]
[1753973434680,6.5801955,176.44,176.37,5.67]
[1753973434877,6.5801955,176.42,176.36,3.32]
[1753973435078,2.91,176.41,176.33,3.32]
[1753973435287,2.91,176.41,176.37,3.32]
[1753973435578,2.91,176.43,176.37,3.32]
[1753973435782,2.91,176.45,176.37,3.32]
[1753973436285,2.91,176.45,176.36,6.5801955]
[1753973436491,2.91,176.47,176.41,3.32]
[1753973437388,2.91,176.45,176.37,3.32]
[1753973437790,2.91,176.51,176.38,6.5801955]
[1753973437994,6.5801955,176.48,176.39,3.32]
[1753973438183,2.91,176.47,176.43,3.32]
[1753973438383,2.91,176.47,176.38,6.5801955]
[1753973438588,9.4901955,176.48,176.46,3.32]
[1753973438889,2.91,176.47,176.4,6.5801955]
[1753973439092,6.5801955,176.5,176.46,3.32]
[1753973439390,2.91,176.49,176.44,5.668]
[1753973439592,390.3701955,176.52,176.43,3.32]
[1753973439795,5.6668,176.48,176.46,3.32]
[1753973439993,5.6668,176.48,176.47,3.32]
[1753973440391,5.6674,176.46,176.45,3.32]
[1753973440593,2.91,176.46,176.43,3.32]
[1753973440793,2.91,176.46,176.39,3.32]
[1753973440991,5.6675,176.46,176.39,3.32]
[1753973441197,9.4901955,176.48,176.39,3.32]
[1753973441397,9.4901955,176.48,176.42,5.6685]
[1753973441598,2.91,176.48,176.43,3.32]
[1753973441823,2.91,176.5,176.43,3.32]
[1753973441998,5.667,176.48,176.43,3.32]
[1753973442813,5.6665,176.49,176.43,3.32]
[1753973442988,2.91,176.5,176.43,3.32]
[1753973443188,5.6665,176.49,176.46,5.6672]
[1753973443498,380.88,176.52,176.48,3.32]
[1753973443798,5.6663,176.5,176.47,5.667]
[1753973443999,5.6663,176.5,176.49,3.32]
[1753973444388,123.22304612,176.54,176.47,3.32]
[1753973444586,2.91,176.49,176.43,3.32]
[1753973445095,2.91,176.45,176.4,3.32]
[1753973445291,6.5801955,176.48,176.42,3.32]
[1753973445292,2.91,176.44,176.42,3.32]
[1753973445693,2.91,176.47,176.38,3.32]
[1753973445996,5.6679,176.45,176.41,5.6688]
[1753973446199,6.5801955,176.48,176.41,5.6688]
[1753973446491,2.91,176.47,176.43,3.32]
[1753973446692,5.6687,176.42,176.41,3.32]
[1753973446896,150.63285062,176.54,176.5,711.28118481]
[1753973447094,6.5801955,176.51,176.5,150.08918725]
[1753973447396,118.4059955,176.51,176.5,89.20178725]
[1753973448093,112.7401955,176.51,176.39,3.32]
[1753973448296,6.5801955,176.42,176.35,3.32]
[1753973449198,5.67,176.38,176.32,6.5801955]
[1753973449497,6.5801955,176.46,176.36,9.9001955]
[1753973449696,5.6699,176.39,176.36,9.9001955]
[1753973449891,5.6699,176.39,176.37,3.32]
[1753973450102,6.5801955,176.46,176.37,3.32]
[1753973450897,5.67,176.39,176.37,3.32]
[1753973451096,6.5801955,176.46,176.37,3.32]
[1753973451496,5.67,176.38,176.37,3.32]
[1753973451710,106.16,176.42,176.34,8.991]
[1753973451996,106.16,176.43,176.35,3.32]
[1753973452600,106.16,176.43,176.33,12.2515955]
[1753973452601,106.16,176.43,176.34,3.32]
[1753973453102,6.5801955,176.42,176.34,3.32]
[1753973453306,6.5801955,176.4,176.32,3.32]
[1753973453602,5.6709,176.36,176.32,3.32]
[1753973453897,6.5801955,176.4,176.32,3.32]
[1753973454100,6.5801955,176.42,176.32,3.32]
[1753973454298,106.16,176.43,176.34,3.32]
[1753973454498,6.5801955,176.42,176.34,3.32]
[1753973454697,5.6704,176.37,176.34,3.32]
[1753973455295,6.5801955,176.4,176.29,6.5801955]
[1753973455606,106.16,176.43,176.32,3.32]
[1753973455898,6.5801955,176.4,176.32,3.32]
[1753973456499,6.5801955,176.4,176.3,3.32]
[1753973456899,6.5801955,176.4,176.29,6.5801955]
[1753973457098,6.5801955,176.38,176.29,3.32]
[1753973457998,6.5801955,176.36,176.29,3.32]
[1753973458397,106.16,176.43,176.25,3.32]
[1753973458398,6.5801955,176.34,176.25,3.32]
[1753973458604,6.5801955,176.32,176.25,3.32]
[1753973459105,6.5801955,176.32,176.26,3.32]
[1753973460303,6.5801955,176.33,176.26,3.32]
[1753973460607,6.5801955,176.35,176.27,3.32]
[1753973461303,6.5801955,176.35,176.31,3.32]
[1753973461304,5.6717,176.33,176.31,3.32]
[1753973461510,6.5801955,176.33,176.25,3.32]
[1753973461706,6.5801955,176.33,176.26,3.32]
[1753973461910,381.14,176.38,176.26,3.32]
[1753973461911,112.7801955,176.35,176.26,3.32]
[1753973462106,5.6714,176.34,176.29,5.6726]
[1753973462701,6.5801955,176.35,176.3,3.32]
[1753973462908,6.5801955,176.33,176.25,3.32]
[1753973463103,6.5801955,176.35,176.25,3.32]
[1753973463302,6.5801955,176.35,176.27,3.32]
[1753973463707,6.5801955,176.35,176.28,3.32]
[1753973464305,6.5801955,176.33,176.24,6.5801955]
[1753973464508,6.5801955,176.33,176.29,3.32]
[1753973464708,5.6726,176.3,176.29,3.32]
[1753973464905,5.6726,176.3,176.22,6.5801955]
[1753973464906,6.5801955,176.31,176.23,3.32]
[1753973465708,106.2,176.36,176.23,3.32]
[1753973465709,6.5801955,176.29,176.23,3.32]
[1753973465911,5.6739,176.26,176.23,3.32]
[1753973466307,112.7801955,176.29,176.23,3.32]
[1753973466915,5.6739,176.26,176.23,3.32]
[1753973467412,6.5801955,176.27,176.23,3.32]
[1753973467606,12.2538955,176.27,176.23,3.32]
[1753973467811,5.6737,176.27,176.24,3.32]
[1753973468011,112.7801955,176.29,176.25,3.32]
[1753973468514,112.7801955,176.29,176.23,3.32]
[1753973469115,112.7801955,176.29,176.24,3.32]
[1753973469611,112.7801955,176.31,176.2,6.5801955]
[1753973469812,112.7801955,176.31,176.27,3.32]
[1753973469813,6.5801955,176.29,176.27,3.32]
[1753973470014,12.2531955,176.29,176.2,6.5801955]
[1753973470209,381.14,176.38,176.25,3.32]
[1753973470409,6.5801955,176.35,176.25,3.32]
[1753973470606,5.6722,176.32,176.27,5.6733]
[1753973470808,6.5801955,176.35,176.28,3.32]
[1753973471209,5.6716,176.33,176.28,8.993]
[1753973471410,106.2,176.37,176.29,3.32]
[1753973471612,381.14,176.38,176.29,3.32]
[1753973471809,487.34,176.38,176.33,5.6715]
[1753973472007,106.2,176.38,176.34,3.32]
[1753973472803,106.2,176.38,176.37,5.6703]
[1753973473008,106.2,176.38,176.37,3.32]
[1753973473415,381.34,176.48,176.36,6.5801955]
[1753973473416,6.5801955,176.46,176.36,6.5801955]
[1753973473613,106.2,176.45,176.38,3.32]
[1753973473915,5.6683,176.44,176.39,3.32]
[1753973474216,106.2,176.45,176.39,3.32]
[1753973474510,106.2,176.45,176.36,6.5801955]
[1753973474710,106.2,176.45,176.37,3.32]
[1753973475112,6.5801955,176.44,176.37,3.32]
[1753973475914,5.6692,176.41,176.37,3.32]
[1753973476314,6.5801955,176.44,176.37,3.32]
[1753973476716,6.5801955,176.42,176.32,6.5801955]
[1753973476916,6.5801955,176.42,176.38,3.32]
[1753973477117,5.6697,176.39,176.38,3.32]
[1753973478006,5.6697,176.39,176.32,6.5801955]
[1753973478214,5.6707,176.36,176.3,6.5801955]
[1753973478411,5.6707,176.36,176.35,3.32]
[1753973478807,6.5801955,176.36,176.29,3.32]
[1753973479008,6.5801955,176.33,176.29,3.32]
[1753973479209,6.5801955,176.35,176.29,3.32]
[1753973479915,5.6726,176.3,176.29,3.32]
[1753973480116,6.5801955,176.35,176.29,3.32]
[1753973480516,5.6723,176.31,176.29,3.32]
[1753973480716,5.6723,176.31,176.3,3.32]
[1753973481016,12.2518955,176.33,176.25,3.32]
[1753973481217,106.16,176.35,176.27,3.32]
[1753973481614,106.16,176.35,176.24,6.5801955]
[1753973481818,106.16,176.35,176.28,3.32]
[1753973482123,5.672,176.32,176.28,3.32]
[1753973482424,6.5801955,176.34,176.28,3.32]
[1753973483416,5.6725,176.31,176.26,5.6738]
[1753973483615,6.5801955,176.3,176.2,9.9001955]
[1753973483819,6.5801955,176.3,176.21,3.32]
[1753973484020,5.6737,176.27,176.23,3.32]
[1753973484320,6.5801955,176.3,176.23,3.32]
[1753973484622,6.5801955,176.3,176.24,3.32]
[1753973485012,5.6734,176.28,176.24,3.32]
[1753973485217,6.5801955,176.3,176.24,3.32]
[1753973485618,5.6734,176.28,176.24,3.32]
[1753973485925,6.5801955,176.3,176.24,3.32]
[1753973486912,106.16,176.35,176.24,3.32]
[1753973487116,6.5801955,176.31,176.24,3.32]
[1753973487317,5.6731,176.29,176.25,3.32]
[1753973487517,6.5801955,176.31,176.25,3.32]
[1753973487714,106.16,176.35,176.25,3.32]
[1753973487715,6.5801955,176.28,176.25,3.32]
[1753973488214,5.6735,176.27,176.25,3.32]
[1753973488613,6.5801955,176.28,176.25,3.32]
[1753973489012,106.16,176.35,176.19,3.18]
[1753973489013,6.5801955,176.26,176.19,3.18]
[1753973489724,6.5801955,176.28,176.19,3.18]
[1753973489918,5.6737,176.27,176.19,3.18]
[1753973490113,6.5801955,176.28,176.19,3.18]
[1753973490423,6.5801955,176.32,176.23,3.18]
[1753973490623,112.7401955,176.34,176.25,3.18]
[1753973491028,5.6713,176.34,176.27,3.18]
[1753973491222,381.3,176.36,176.29,3.18]
[1753973491525,381.3,176.36,176.31,3.18]
[1753973492114,5.6715,176.34,176.31,3.18]
[1753973492523,6.5801955,176.33,176.27,3.18]
[1753973492720,5.6724,176.31,176.27,3.18]
[1753973493030,6.5801955,176.33,176.27,3.18]
[1753973493926,5.6725,176.31,176.27,3.18]
[1753973494123,5.6725,176.31,176.28,3.18]
[1753973494325,6.5801955,176.33,176.25,3.18]
[1753973494516,6.5801955,176.31,176.25,3.18]
[1753973494720,381.3,176.36,176.27,3.18]
[1753973495022,5.6722,176.32,176.27,3.18]
[1753973495226,6.5801955,176.35,176.27,3.18]
[1753973495423,5.6717,176.33,176.27,3.18]
[1753973496023,6.5801955,176.35,176.26,3.18]
[1753973496219,6.5801955,176.35,176.27,3.18]
[1753973496724,5.6721,176.32,176.29,3.18]
[1753973497123,6.5801955,176.35,176.29,8.8528]
[1753973497326,381.3,176.36,176.29,3.18]
[1753973497822,5.6711,176.35,176.29,3.18]
[1753973498022,106.16,176.37,176.29,3.18]
[1753973498324,5.6708,176.36,176.33,3.18]
[1753973498926,5.6709,176.35,176.33,3.18]
[1753973499229,106.16,176.37,176.31,3.18]
[1753973499529,106.16,176.37,176.3,3.18]
[1753973500030,106.16,176.37,176.31,3.18]
[1753973500431,5.6716,176.34,176.31,3.18]
[1753973500626,6.5801955,176.36,176.31,3.18]
[1753973501024,6.5801955,176.36,176.32,3.18]
[1753973501338,6.5801955,176.36,176.27,4.7555924]
[1753973501527,6.5801955,176.36,176.31,3.18]
[1753973501729,6.5801955,176.36,176.26,6.5801955]
[1753973501730,6.5801955,176.36,176.32,3.18]
[1753973501932,6.5801955,176.36,176.28,3.18]
[1753973502232,5.6714,176.34,176.3,3.18]
[1753973502530,5.6714,176.34,176.31,5.6722]
[1753973502850,5.6714,176.34,176.33,3.18]
[1753973503237,5.6716,176.33,176.29,5.6727]
[1753973503436,6.5801955,176.36,176.3,3.18]
[1753973504144,106.16,176.37,176.3,3.18]
[1753973504535,5.671,176.35,176.31,3.18]
[1753973504735,106.16,176.37,176.31,3.18]
[1753973505141,5.6711,176.35,176.31,3.18]
[1753973505841,5.6716,176.33,176.31,3.18]
[1753973506240,106.16,176.37,176.31,3.18]
[1753973506648,5.6708,176.36,176.32,5.6717]
[1753973506846,106.16,176.37,176.33,3.18]
[1753973507244,106.16,176.37,176.35,3.18]
[1753973507646,112.7401955,176.37,176.31,3.18]
[1753973507947,6.5801955,176.35,176.31,3.18]
[1753973508446,5.6719,176.32,176.31,3.18]
[1753973508650,6.5801955,176.35,176.27,4.7555924]
[1753973508852,112.7401955,176.37,176.29,5.6727]
[1753973509046,112.7401955,176.37,176.3,3.18]
[1753973509453,5.671,176.35,176.31,3.18]
[1753973509947,112.7401955,176.37,176.31,3.18]
[1753973510953,112.7401955,176.37,176.29,5.6727]
[1753973511154,112.7401955,176.37,176.33,3.18]
[1753973511553,5.6715,176.34,176.3,3.18]
[1753973512257,5.6717,176.33,176.3,3.18]
[1753973512454,6.5801955,176.35,176.3,3.18]
[1753973513057,6.5801955,176.33,176.25,4.7555924]
[1753973513259,6.5801955,176.33,176.3,3.18]
[1753973514657,5.6722,176.31,176.3,3.18]
[1753973514956,6.5801955,176.33,176.26,4.7555924]
[1753973515163,6.5801955,176.31,176.27,3.18]
[1753973515453,12.2530955,176.29,176.25,4.7555924]
[1753973515657,6.5801955,176.29,176.27,3.18]
[1753973515856,5.6732,176.28,176.27,3.18]
[1753973516057,6.5801955,176.29,176.25,3.18]
[1753973516261,6.5801955,176.29,176.23,4.7555924]
[1753973516262,5.6742,176.25,176.23,4.7555924]
[1753973516557,6.5801955,176.25,176.18,6.33208003]
[1753973516863,5.6753,176.22,176.2,3.18]
[1753973517060,5.6753,176.22,176.21,3.18]
[1753973517358,5.6751,176.22,176.21,3.18]
[1753973518564,5.6758,176.2,176.19,3.23]
[1753973518762,6.5801955,176.21,176.19,3.23]
[1753973518958,6.5801955,176.21,176.15,5.6772]
[1753973518959,6.5801955,176.21,176.2,3.23]
[1753973519362,12.2556955,176.21,176.2,3.23]
[1753973519966,5.6761,176.19,176.14,5.6777]
[1753973520263,6.5801955,176.24,176.15,3.23]
[1753973520457,6.5801955,176.24,176.18,3.23]
[1753973520958,5.675,176.23,176.18,3.23]
[1753973521162,6.5801955,176.24,176.18,3.23]
[1753973521461,6.5801955,176.2,176.16,3.23]
[1753973521765,6.5801955,176.18,176.16,3.23]
[1753973522257,5.677,176.17,176.16,3.23]
[1753973522559,6.5801955,176.2,176.17,3.23]
[1753973522861,6.5801955,176.21,176.15,3.23]
[1753973523450,6.5801955,176.19,176.15,3.23]
[1753973523665,12.2564955,176.19,176.15,3.23]
[1753973523961,6.5801955,176.17,176.1,3.23]
[1753973525061,12.2569955,176.17,176.08,3.23]
[1753973525260,6.5801955,176.17,176.08,3.23]
[1753973525459,6.5801955,176.19,176.09,6.5801955]
[1753973525659,112.7201955,176.21,176.12,3.23]
[1753973525963,6.5801955,176.14,176.09,5.6791]
[1753973526157,6.5801955,176.14,176.1,3.23]
[1753973526365,6.5801955,176.14,176.04,6.5801955]
[1753973526562,6.5801955,176.11,176.08,3.23]
[1753973526759,6.5801955,176.11,176.02,3.23]
[1753973526961,6.5801955,176.09,176.02,3.23]
[1753973527155,5.68,176.07,176.02,5.6814]
[1753973527366,5.68,176.07,176.03,3.23]
[1753973527671,5.6803,176.06,176.03,3.23]
[1753973527874,6.5801955,176.09,176.03,3.23]
[1753973528165,6.5801955,176.09,176.04,3.23]
[1753973528862,6.5801955,176.09,176.05,3.23]
[1753973529655,6.5801955,176.09,176.06,3.23]
[1753973529858,6.5801955,176.12,176.06,3.23]
[1753973530072,6.5801955,176.1,175.94,12.35697849]
[1753973530371,6.5801955,176.1,176.0,3.23]
[1753973530659,392.75209,176.22,176.04,3.23]
[1753973530660,388.0601955,176.22,176.04,3.23]
[1753973530860,6.5801955,176.11,176.04,3.23]
[1753973531375,12.2589955,176.11,176.07,3.23]
[1753973531662,6.5801955,176.12,176.08,3.23]
[1753973531870,6.5801955,176.1,176.06,3.23]
[1753973532258,5.6794,176.09,176.07,3.23]
[1753973532458,6.5801955,176.11,176.01,6.5801955]
[1753973532664,6.5801955,176.11,176.02,3.23]
[1753973532872,6.5801955,176.11,175.95,3.23]
[1753973533167,6.5801955,176.11,176.01,3.23]
[1753973533864,6.5801955,176.09,176.01,3.23]
[1753973534771,6.5801955,176.09,176.0,3.23]
[1753973535163,5.679,176.1,176.02,3.23]
[1753973535363,6.5801955,176.11,176.02,3.23]
[1753973535571,106.16,176.12,176.06,5.6802]
[1753973535769,112.7401955,176.12,176.07,3.23]
[1753973535973,6.5801955,176.12,176.07,3.23]
[1753973536173,6.5801955,176.15,176.07,3.23]
[1753973536373,6.5801955,176.17,176.07,3.23]
[1753973536567,5.6777,176.14,176.1,5.6788]
[1753973536766,5.6777,176.14,176.11,3.23]
[1753973536967,6.5801955,176.17,176.11,3.23]
[1753973537870,5.6771,176.16,176.12,3.23]
[1753973538074,6.5801955,176.17,176.12,3.23]
[1753973538272,12.2570955,176.17,176.12,8.9081]
[1753973538468,6.5801955,176.17,176.13,3.23]
[1753973538668,106.18,176.18,176.13,3.23]
[1753973539568,111.8565,176.18,176.14,3.23]
[1753973539771,106.18,176.18,176.14,3.23]
[1753973539979,106.18,176.18,176.14,8.9075]
[1753973540175,106.18,176.18,176.11,3.23]
[1753973540567,106.18,176.18,176.14,5.6775]
[1753973540776,106.18,176.18,176.15,3.23]
[1753973541072,111.8566,176.18,176.16,3.23]
[1753973541273,111.8566,176.18,176.17,3.23]
[1753973541981,106.18,176.18,176.17,3.23]
[1753973543074,381.48,176.22,176.17,3.23]
[1753973543373,148.18887665,176.25,176.21,3.23]
[1753973543766,148.18887665,176.25,176.23,5.6746]
[1753973543971,148.18887665,176.25,176.24,3.23]
[1753973544778,106.16,176.26,176.18,6.5801955]
[1753973544974,106.16,176.26,176.25,3.23]
[1753973546775,106.14,176.3,176.25,3.23]
[1753973546976,5.6735,176.28,176.25,3.23]
[1753973547172,106.14,176.3,176.25,3.23]
[1753973548275,111.8126,176.3,176.25,3.23]
[1753973548675,106.14,176.3,176.25,3.23]
[1753973549368,111.8126,176.3,176.26,3.21]
[1753973549572,106.14,176.3,176.26,3.21]
[1753973549975,106.14,176.3,176.26,8.8836]
[1753973550174,106.14,176.3,176.27,3.21]
[1753973550478,106.14,176.3,176.27,8.8835]
[1753973550780,106.14,176.3,176.23,3.21]
[1753973550976,111.8126,176.3,176.23,3.21]
[1753973551478,106.14,176.3,176.23,3.21]
[1753973551775,106.14,176.3,176.27,3.21]
[1753973552176,5.673,176.29,176.27,3.21]
[1753973552378,106.14,176.3,176.27,3.21]
[1753973552978,106.14,176.3,176.23,3.21]
[1753973553178,5.6731,176.29,176.25,3.21]
[1753973553481,106.14,176.3,176.25,3.21]
[1753973553784,5.6731,176.29,176.25,3.21]
[1753973553982,106.1,176.31,176.25,8.8842]
[1753973554281,106.1,176.31,176.26,3.21]
[1753973554778,5.6728,176.3,176.26,3.21]
[1753973554976,5.6728,176.3,176.26,8.8838]
[1753973555282,5.6729,176.29,176.27,3.21]
[1753973555581,106.08,176.32,176.25,3.21]
[1753973556074,106.08,176.32,176.22,6.5801955]
[1753973556280,106.08,176.32,176.23,3.21]
[1753973556582,106.08,176.32,176.25,3.21]
[1753973556782,106.08,176.32,176.27,3.21]
[1753973556981,106.08,176.32,176.27,7.26520856]
[1753973557279,106.08,176.32,176.29,3.21]
[1753973557680,106.08,176.32,176.3,3.21]
[1753973558079,4.05520856,176.37,176.3,3.21]
[1753973558281,106.08,176.36,176.31,3.21]
[1753973558483,106.08,176.36,176.28,3.21]
[1753973558684,5.6722,176.32,176.28,8.883]
[1753973558875,6.60923372,176.35,176.29,3.21]
[1753973559681,6.60923372,176.33,176.27,3.21]
[1753973560175,6.60923372,176.29,176.27,3.21]
[1753973560377,6.60923372,176.29,176.19,6.60923372]
[1753973560578,106.06,176.3,176.2,3.21]
[1753973560579,5.6746,176.24,176.2,3.21]
[1753973560781,106.06,176.3,176.2,3.21]
[1753973560782,6.60923372,176.25,176.2,3.21]
[1753973561080,6.60923372,176.27,176.2,8.8855]
[1753973561287,6.60923372,176.27,176.18,3.21]
[1753973561984,6.60923372,176.29,176.2,3.21]
[1753973562175,5.6741,176.26,176.2,8.8855]
[1753973562384,6.60923372,176.27,176.2,3.21]
[1753973562782,12.28223372,176.29,176.23,5.6746]
[1753973563087,6.60923372,176.27,176.2,3.21]
[1753973563282,5.6741,176.26,176.21,5.6753]
[1753973563482,6.60923372,176.27,176.18,3.21]
[1753973564776,12.28293372,176.27,176.18,3.21]
[1753973564975,106.06,176.3,176.22,3.21]
[1753973565177,106.06,176.3,176.25,3.21]
[1753973565582,6.60923372,176.33,176.25,3.21]
[1753973565784,6.60923372,176.33,176.28,3.21]
[1753973565983,6.60923372,176.33,176.26,3.21]
[1753973566185,5.6723,176.31,176.27,3.21]
[1753973566386,112.66923372,176.35,176.27,3.21]
[1753973567284,6.60923372,176.33,176.27,3.21]
[1753973568689,5.6721,176.32,176.27,8.8833]
[1753973568889,5.6721,176.32,176.27,5.6733]
[1753973569079,6.60923372,176.33,176.29,3.21]
[1753973569283,5.672,176.32,176.3,3.21]
[1753973569484,106.06,176.35,176.28,3.21]
[1753973570087,5.6714,176.34,176.29,5.6727]
[1753973570287,5.6714,176.34,176.3,3.21]
[1753973570488,106.06,176.35,176.3,3.21]
[1753973570690,0.98723404,176.4,176.22,6.60923372]
[1753973570691,0.98723404,176.4,176.34,3.21]
[1753973570995,487.5,176.42,176.34,3.21]
[1753973571492,487.5,176.42,176.37,3.21]
[1753973571691,487.5,176.42,176.35,3.21]
[1753973571892,6.60923372,176.41,176.35,3.21]
[1753973572292,6.60923372,176.39,176.25,3.21]
[1753973572493,6.60923372,176.39,176.3,3.21]
[1753973572694,6.60923372,176.37,176.3,3.21]
[1753973572994,6.60923372,176.37,176.28,3.21]
[1753973573192,6.60923372,176.35,176.28,3.21]
[1753973573495,5.6717,176.33,176.31,3.21]
[1753973573686,5.6717,176.33,176.29,5.6729]
[1753973573884,5.672,176.32,176.28,3.21]
[1753973574089,6.60923372,176.35,176.26,3.21]
[1753973574901,6.60923372,176.35,176.28,3.21]
[1753973576007,106.02,176.36,176.28,3.21]
[1753973576994,106.02,176.36,176.3,3.21]
[1753973577705,111.6908,176.36,176.3,8.8824]
[1753973577902,111.6908,176.36,176.3,5.6724]
[1753973578205,5.6692,176.41,176.35,5.6707]
[1753973578399,487.48,176.42,176.34,3.27]
[1753973578706,487.48,176.42,176.35,5.6709]
[1753973578707,5.6696,176.4,176.35,5.6709]
[1753973578903,487.48,176.42,176.35,6.60923372]
[1753973579106,487.48,176.42,176.36,3.27]
[1753973579406,106.02,176.42,176.36,3.27]
[1753973579606,106.02,176.42,176.37,5.6701]
[1753973579807,106.02,176.42,176.38,3.27]
[1753973580204,111.6887,176.42,176.38,3.27]
[1753973580508,106.02,176.42,176.38,3.27]
[1753973580909,106.02,176.42,176.39,3.27]
[1753973581210,115.95356962,176.47,176.4,3.27]
[1753973581511,5.6678,176.45,176.4,3.27]
[1753973581703,221.97356962,176.47,176.4,3.27]
[1753973581704,221.97356962,176.47,176.41,6.60923372]
[1753973582014,106.0,176.51,176.44,3.27]
[1753973582306,5.6673,176.47,176.44,3.27]
[1753973582609,112.60923372,176.51,176.45,3.27]
[1753973583613,5.667,176.48,176.43,3.27]
[1753973583813,112.60923372,176.51,176.43,3.27]
[1753973584910,5.6675,176.46,176.45,3.27]
[1753973586612,112.60923372,176.51,176.42,8.9387]
[1753973586913,112.60923372,176.51,176.43,3.27]
[1753973587709,5.6677,176.46,176.43,3.27]
[1753973587910,6.60923372,176.49,176.44,3.27]
[1753973588314,6.60923372,176.45,176.26,11.3473]
[1753973588613,6.60923372,176.43,176.35,3.27]
[1753973588815,5.6695,176.4,176.35,3.27]
[1753973589209,105.96,176.42,176.36,5.6706]
[1753973589408,105.96,176.42,176.37,3.27]
[1753973589806,105.96,176.42,176.34,5.6712]
[1753973589807,5.6696,176.4,176.34,5.6712]
[1753973590010,6.60923372,176.41,176.33,3.27]
[1753973590613,6.60923372,176.41,176.34,3.27]
[1753973591816,5.6695,176.4,176.34,8.9411]
[1753973592018,5.6695,176.4,176.35,3.27]
[1753973592418,5.6698,176.39,176.35,3.27]
[1753973592718,6.60923372,176.41,176.35,3.27]
[1753973592919,6.60923372,176.39,176.3,3.27]
[1753973593411,6.60923372,176.41,176.31,6.60923372]
[1753973593616,5.6697,176.39,176.33,5.6716]
[1753973593818,105.96,176.42,176.33,6.60923372]
[1753973594118,5.6696,176.4,176.34,8.9411]
[1753973594417,105.96,176.42,176.27,381.26]
[1753973594621,6.60923372,176.41,176.32,3.27]